Cogmind - Beta 12 @@@ ROGUE MODE // 2023.04.21 @ 21:23:23 Player: btmk16 Result: Destroyed self with Rocket Launcher Performance ------------- Evolutions (0) 0 Regions Visited (2) 400 Robots Destroyed (28) 140 Value Destroyed (645) 645 Prototype IDs (2) 40 Alien Tech Used (0) 0 Bonus (0) 0 TOTAL SCORE: 1225 Bonus ------- None Cogmind --------- Core Integrity 0/250 Matter 279/300 Energy 240/250 System Corruption 4% Temperature Cool (0) Movement Treading (320) Ox2 Location -10/Mines Parts ------- > --- POWER (1) -------- Ion Engine > --- PROPULSION (2) --- Light Treads > --- UTILITY (2) ------ Heat Sink High-capacity Storage Unit > --- WEAPON (2) ------- Medium Laser Rocket Launcher > --- INVENTORY (20) --- Ion Engine Ion Engine Ion Engine Improved Treads Improved Treads Improved Treads Improved Treads Aluminum Leg Aluminum Leg Wheel Compact Wheel Improved Heat Sink Structural Scanner Experimental Sensor Array Hacking Suite Peak State ------------ > --- POWER ------------ Ion Engine > --- PROPULSION ------- Light Treads Light Treads > --- UTILITY ---------- Heat Sink High-capacity Storage Unit > --- WEAPON ----------- Medium Laser Rocket Launcher > --- INVENTORY -------- Ion Engine Ion Engine Ion Engine Improved Treads Improved Treads Improved Treads Improved Treads Aluminum Leg Aluminum Leg Wheel Compact Wheel Improved Heat Sink Structural Scanner Experimental Sensor Array Hacking Suite [Rating: 11] Favorites ----------- Power Ion Engine Engine Ion Engine Propulsion Light Treads Treads Light Treads Utility High-capacity Storage Unit Device Seismic Detector Storage High-capacity Storage Unit Weapon Light Assault Rifle Energy Gun Medium Laser Ballistic Gun Light Assault Rifle Launcher Rocket Launcher Build | -11 -10 -10 ------- Run | Jun Mat Min Slots Evolved . | . . . Power . | . . . Propulsion . | . . . Utility . | . . . Weapon . | . . . Parts Attached 23 | 8 11 4 Power 5 | 1 3 1 Engine 5 | 1 3 1 Core . | . . . Reactor . | . . . Propulsion 6 | 2 4 . Treads 6 | 2 4 . Leg . | . . . Wheel . | . . . Hover . | . . . Flight . | . . . Utility 4 | 2 2 . Device 2 | 1 1 . Storage 2 | 1 1 . Processor . | . . . Hackware . | . . . Protection . | . . . Artifact . | . . . Weapon 8 | 3 2 3 Energy Gun 5 | 2 2 1 Energy Cannon . | . . . Ballistic Gun 1 | 1 . . Ballistic Cannon . | . . . Launcher 2 | . . 2 Special Weapon . | . . . Impact Weapon . | . . . Slashing Weapon . | . . . Piercing Weapon . | . . . Special Melee Weapon . | . . . Unidentified Prototypes . | . . . Parts Lost 7 | . 4 3 Power . | . . . Propulsion 3 | . 2 1 Utility 1 | . 1 . Weapon 3 | . 1 2 Highest Loss Streak 3 | . 3 2 To Critical Strikes . | . . . Average Slot Usage (%) 99 | . 99 99 Engine 14 | . 14 14 Treads 27 | . 27 28 Device 13 | . 13 14 Storage 14 | . 14 14 Energy Gun 14 | . 13 16 Ballistic Gun 13 | . 14 11 Naked Turns . | . . . Heaviest Build 52 | 14 49 52 Greatest Support 40 | 40 40 40 Greatest Overweight (x) 1 | . 1 1 Average Overweight (x) . | . . 1 Largest Inventory Capacity 20 | 8 20 20 Average Capacity 18 | 7 18 20 Most Carried 16 | 6 14 16 Average Carried 12 | 4 11 13 Final Capacity 20 | 8 20 20 Final Carried 15 | 6 13 15 Class Distribution -------------------- 100% | Mutant Dominant Class ---------------- Mutant | -10/Materials Mutant | -10/Mines Resources | -11 -10 -10 ----------- Run | Jun Mat Min Matter Collected 640 | 285 170 185 Remotely . | . . . Salvage Created 820 | 97 606 117 Parts 44 | 4 33 7 Haulers Intercepted 2 | . 2 . Recyclers Shooed 1 | . 1 . Parts Field Recycled . | . . . Retrieved Matter . | . . . Parts Self-Destructed . | . . . Prevented . | . . . Kills | -11 -10 -10 ------- Run | Jun Mat Min Combat Hostiles Destroyed 21 | . 16 5 Guns 19 | . 16 3 AOE 2 | . . 2 Classes Destroyed 7 | 2 4 1 Worker 1 | . . 1 Tunneler 1 | 1 . . Hauler 2 | . 2 . Recycler 1 | 1 . . Operator 2 | . 2 . Swarmer 7 | . 6 1 Grunt 14 | . 10 4 Best Kill Streak 4 | 2 4 2 Combat Bots Only 4 | . 4 2 Max Kills in Single Turn 1 | 1 1 1 Gunslinging . | . . . Exploded 1 | . . 1 Melee . | . . . Uniques/NPCs Destroyed . | . . . Combat | -11 -10 -10 -------- Run | Jun Mat Min Damage Taken 1187 | . 832 355 Core 253 | . 169 84 Absorbed by Shields . | . . . Core Remaining (%) 100 | 100 . . Volleys Fired 114 | 5 92 17 Largest 2 | 2 2 2 Hottest 90 | 70 70 90 Shots Fired 216 | 10 176 30 Gun 212 | 10 176 26 Cannon . | . . . Launcher 4 | . . 4 Special . | . . . Kinetic 97 | 5 90 2 Thermal 115 | 5 86 24 Explosive 4 | . . 4 Electromagnetic . | . . . Robot Hit Streak 15 | 4 15 14 Robot Miss Streak 6 | 1 6 2 Penetration Max . | . . . Secondary Targets 1 | . . 1 Max Gunslinging Chain 1 | . . 1 Shots Hit Robots 138 | 6 112 20 Core Hits 55 | 4 40 11 Critical Kills . | . . . Critical Parts Destroyed . | . . . Critical Strikes 4 | . 2 2 Burn 4 | . 2 2 Melee Attacks . | . . . Impact . | . . . Slashing . | . . . Piercing . | . . . Sneak Attacks . | . . . Combat Hostiles . | . . . Follow-up Attacks . | . . . Damage Inflicted 1806 | 70 1158 578 Guns 1440 | 70 1158 212 Cannons . | . . . Explosions 366 | . . 366 Melee . | . . . Ramming . | . . . Kinetic 492 | 6 476 10 Thermal 948 | 64 682 202 Explosive 366 | . . 366 Electromagnetic . | . . . Impact . | . . . Slashing . | . . . Piercing . | . . . Highest Corruption 4 | . 4 4 Average Corruption 3 | . 2 4 Corruption Purged . | . . . Corruption Blocked . | . . . Effects 47 | . 20 27 Message Errors 9 | . 2 7 Matter Fused 13 | . 3 10 Heat Flow Errors 6 | . 2 4 Energy Discharges 5 | . 3 2 Parts Rejected 2 | . 2 . Data Loss (minor) 6 | . 3 3 Data Loss (major) 2 | . 1 1 Weapon Failures 4 | . 4 . Overload Shots . | . . . Overflow Damage 2 | . . 2 Projectiles . | . . . Explosions 2 | . . 2 Melee . | . . . Knockbacks . | . . . Impact . | . . . Kinetic . | . . . Secondary . | . . . Self-Inflicted Damage 121 | . . 121 Shots 4 | . . 4 Rammed . | . . . Targets Rammed . | . . . Kicked . | . . . Crushed . | . . . Highest Temperature 265 | 70 265 207 Average Temperature 56 | 33 58 58 Received Heat Transfer 510 | . 390 120 Siege Activations . | . . . Robots Corrupted . | . . . Combat Hostiles . | . . . Parts Fried . | . . . Impact Corruptions . | . . . Robots Melted . | . . . Combat Hostiles . | . . . Parts Melted 4 | . 3 1 Heat Transferred 2965 | 185 2099 681 Parts Sabotaged . | . . . Parts Stolen . | . . . Parts Stripped . | . . . Power Chain Reactions . | . . . Missiles Intercepted . | . . . Alert | -11 -10 -10 ------- Run | Jun Mat Min Peak Influence 160 | 10 160 117 Initial 12 | . 6 12 Average 39 | 3 55 14 Maximum Alert Level . | . . . Low Security (%) 100 | 100 100 100 Level 1 . | . . . Level 2 . | . . . Level 3 . | . . . Level 4 . | . . . Level 5 . | . . . High Security . | . . . Max Security . | . . . Squads Dispatched 4 | . 4 . Investigation 1 | . 1 . Extermination . | . . . Reinforcement 3 | . 3 . Assault . | . . . Garrison . | . . . Intercept . | . . . Searches Triggered . | . . . Construction Impeded . | . . . Haulers Reinforced . | . . . Active Scanning Responses . | . . . Cargo Convoy Interrupts . | . . . Stealth | -11 -10 -10 --------- Run | Jun Mat Min Distress Signals 2 | . 1 1 Communications Jammed . | . . . Distress Signals . | . . . Times Spotted 36 | . 29 7 Peak Tracking Total 4 | . 4 3 Tactical Retreats 2 | . 2 . Traps | -11 -10 -10 ------- Run | Jun Mat Min Traps Triggered 3 | . 3 . Indirectly . | . . . Trap Hack Attempts . | . . . Triggered . | . . . Disarmed . | . . . Reprogrammed . | . . . Reused . | . . . Traps Extracted . | . . . Installed . | . . . Triggered . | . . . Machines | -11 -10 -10 ---------- Run | Jun Mat Min Machines Disabled 1 | . . 1 Max in Single Turn 1 | . . 1 Machines Repaired . | . . . Machines Sabotaged . | . . . Overloaded Fab Kills . | . . . Hacking | -11 -10 -10 --------- Run | Jun Mat Min Machines Accessed 5 | . 5 . Terminals 5 | . 5 . Fabricators . | . . . Repair Stations . | . . . Recycling Units . | . . . Scanalyzers . | . . . Garrison Access . | . . . Total Hacks 12 | . 12 . Successful 4 | . 4 . Failed 7 | . 7 . Catastrophic 1 | . 1 . Database Lockouts 1 | . 1 . Manual 10 | . 10 . Terminals 12 | . 12 . Fabricators . | . . . Repair Stations . | . . . Recycling Units . | . . . Scanalyzers . | . . . Garrison Access . | . . . Terminal Hacks 3 | . 3 . Robot Analysis 1 | . 1 . Prototype ID Bank 1 | . 1 . Locate Traps 1 | . 1 . Fabricator Hacks . | . . . Repair Station Hacks . | . . . Recycling Unit Hacks . | . . . Scanalyzer . | . . . Garrison Access Hacks . | . . . Unauthorized Hacks 1 | . 1 . Terminals 1 | . 1 . Botnet 1 | . 1 . Fabricators . | . . . Repair Stations . | . . . Recycling Units . | . . . Scanalyzers . | . . . Garrison Access . | . . . Data Cores Recovered . | . . . Used . | . . . Hacking Detections 3 | . 3 . Full Trace Events . | . . . Feedback Events . | . . . Feedback Blocked . | . . . Robot Schematics Acquired . | . . . Robots Built . | . . . Authchips . | . . . Time . | . . . Total Robot Build Rating . | . . . Part Schematics Acquired . | . . . Parts Built . | . . . Authchips . | . . . Time . | . . . Total Part Build Rating . | . . . Parts Repaired . | . . . Time . | . . . Parts Recycled . | . . . Recycled Matter . | . . . Retrieved Matter . | . . . Retrieved Components . | . . . Parts Scanalyzed . | . . . Part Schematics Acquired . | . . . Parts Damaged . | . . . Bothacking | -11 -10 -10 ------------ Run | Jun Mat Min Used RIF Installer . | . . . Robots Hacked . | . . . Non-combat . | . . . Combat . | . . . Robot Hacks Applied . | . . . Relay Couplers Released . | . . . Fabnet Peak Effective % . | . . . Robots Rewired . | . . . Allies Hacked . | . . . Hacks Repelled . | . . . Allies | -11 -10 -10 -------- Run | Jun Mat Min Total Allies . | . . . Largest Group . | . . . Highest-Rated Group . | . . . Highest-Rated Ally . | . . . Total Orders . | . . . Ally Attacks . | . . . Total Damage . | . . . Kills . | . . . Allies Corrupted . | . . . Allies Melted . | . . . Intel | -11 -10 -10 ------- Run | Jun Mat Min Robot Analysis Total 1 | . 1 . Derelict Logs Recovered 1 | . . 1 Drone Launches . | . . . Drone Recoveries . | . . . Exploration | -11 -10 -10 ------------- Run | Jun Mat Min Turns Passed 3468 | 117 2087 1264 Spaces Moved 1098 | 52 766 280 Core 5 | 5 . . Treads 1093 | 47 766 280 Legs . | . . . Wheels . | . . . Hover . | . . . Flight . | . . . Fastest Speed 50 | 50 160 240 Average Speed 224 | 149 224 240 Slowest Speed 240 | 160 240 240 Overloaded Moves . | . . . Propulsion Burnouts . | . . . Robots Hopped . | . . . Cave-ins Triggered . | . . . Exploration Rate (%) 57 | 5 97 69 Regions Visited 2 Branch Regions 1 Pre-discovered Areas 1 | . . 1 Known Exits Taken . | . . . Unknown Exits Taken 2 | 1 1 . Scrap Searched . | . . . Spaces Dug 9 | . . 9 Terrain Destroyed 29 | . . 29 Melee . | . . . Projectile . | . . . AOE 29 | . . 29 Terrain Rammed . | . . . Walls Destroyed . | . . . Machines Disabled . | . . . Actions | -11 -10 -10 --------- Run | Jun Mat Min Total 1895 | 78 973 844 Wait 645 | 8 97 540 Move 1096 | 51 765 280 Hop . | . . . Pick Up 16 | 6 7 3 Fast Attach 10 | 7 3 . Attach 5 | . 3 2 Detach . | . . . Swap 8 | 1 5 2 Drop 1 | . 1 . Fire 114 | 5 92 17 Melee . | . . . Ram . | . . . Kick . | . . . Crush . | . . . Escape Stasis . | . . . Rewire . | . . . Trap . | . . . Miscellaneous . | . . . Route ------- -11/Junkyard -10/Materials (discovered 4 exits: [*Mat x3] / [*Min]) -10/Mines (discovered 1 exit: [*Exi]) History --------- Turn | Location | Event 13 | -11/Junkyard | Discovered new exit (range 16) 118 | -11/Junkyard | Entered Materials 309 | -10/Materials | Build established: Mutant 428 | -10/Materials | Discovered new exit (range 15) 853 | -10/Materials | Discovered new exit (range 12) 1368 | -10/Materials | Central database locked down 1468 | -10/Materials | Core integrity fell below 50% 1480 | -10/Materials | Discovered new exit (range 8) 1751 | -10/Materials | Lost 3 parts (2n1w) 2074 | -10/Materials | Discovered new exit (range 7) 2205 | -10/Materials | Entered Mines 2206 | -10/Mines | Assembled infested the area 3087 | -10/Mines | Deemed a non-threat by the Exiles lab entrance 3087 | -10/Mines | Discovered new exit (range 5) 3146 | -10/Mines | Received a Rocket Launcher from a helpful Derelict 3231 | -10/Mines | Found a damaged Exp. Sensor Array with a note attached 3236 | -10/Mines | Found Prototype Device 3303 | -10/Mines | Core integrity fell below 20% 3416 | -10/Mines | Learned location of Mines (-9) 3469 | -10/Mines | Destroyed self with Rocket Launcher Last Messages --------------- 03332_ U-05 Engineer builds a Wall. 03333_ Acquired 36 matter. 03336_ U-05 Engineer builds a Wall. 03339_ Acquired 24 matter. 03340_ U-05 Engineer lays Concrete. 03344_ U-05 Engineer builds a Wall. 03349_ U-05 Engineer lays Concrete. 03350_ U-05 Engineer builds a Wall. 03358_ U-05 Engineer lays Concrete. 03369_ U-05 Engineer builds a Wall. 03379_ =MOO6OYWG&JSTLTWB>VGWPJCE 03404_ System corrupted: Component data lost. 03416_ Acquired derelict log, extracted data. World map updated: -9/Mines. 03457_ Sml. Laser destroyed. 03467_ System corrupted: Matter fused (-5). 03467_ Lgt. Treads destroyed. 03469_ Core Extractor disabled. 03469_ S-10 Pest destroyed. 03469_ Destroyed Lgt. Ion Engine. Map ----- +----------------------------------------------------+ | ????????????????????????????????? | | ????????????????????????????????? | | ????????????????????????????????? | | ????????????????????????????????? | | ????????????????????????????????? | | ????????????????????????????????? | | ????????????????????????????????? | | ????????????????????????? ??????? | | ????????????????????????? ??????? | | ????????????????????????? ??????? | | ????????????????????????? ??????? | | ????????????????????????? ??????? | | ????????????????????????" "?????? | | ????????????????????????" "?????? | | ???????????????????????"" ""???#? | | ??????????????????????? ?? #? | | ????????????????? ?"" """ """ #? | | ????????????????# """ """ """ #? | | ????????????????# """ """ """ #? | | ????????????????? #? | | ????????????????# """ """ ""s #? | | ?????????##?????# """ """ #? | | ??????#?? #????# """ """% " #? | | ?????## #???# s #? | | ????## """ ???# % #? | | ##### """ ???# @ #? | | """ #???######## ######? | | ? #??????????# #?????? | | ???# ##??????#### #?????? | | ????# ##????## #?????? | | ?????# ! ###### #?????? | | ??????# % #?????? | | ??????# = ##?????? | | ??????## ##### ##??????? | | ???????## ###### ##???????? | | ????????# #### ##????????? | | ????????# ## #??# #?????????? | | ????????## ### #### #?????????? | | ?????????#####?# ## #?????????? | | ??####?????????# ## ##?????????? | | ?? ########### ## #??????????? | | ?? #? ## ## #??????????? | | ??# ## ## #??????????? | | ??# ## """ #### ####???????? | | ??# ## """ #?# # # ##???????? | | ??# ## """ *### # # #???????? | | ??# ## % =# #???????? | | ??# ## =##### # #???????? | | ??# ############# # ##???????? | | ??# ########## # #???????? | +----------------------------------------------------+ Best States ------------- Heat Dissipation 35 Energy Generation 10 Energy Capacity 250 Matter Stores 300 Matter Capacity 300 Sight Range 16 Terrain Scan Density 10 Evasion (%) 40 Recoil Reduction 2 Item Schematics ----------------- None Robot Schematics ------------------ None Fabricated ------------ Nothing Alien Tech Used ----------------- None Achievements -------------- None Challenges ------------ None Game ------ Seed CannonLightpackFacilitator Manual? 0 Play Time 00:17:30 Cumulative 648.9 hours Start 2023.04.21 @ 21:07:40 End 2023.04.21 @ 21:23:23 Sessions 1 Manual Loads 0 Difficulty Rogue Special Mode None Game No. 655 Rogue 654 Adventurer 0 Explorer 1 Win Type - Total 31 Types 22/0/6/3/0/0/0/0/0 Lore% 87 Gallery% 92 Achievement% 79 Wizard Run 0 Options --------- ASCII 0 Keyboard 1 Movement Vi Keybinds 0 Fullscreen 1 Font 18/SmallcapsGlow Map View 76x50 Tactical HUD 1 Map Filters NONE Filters NONE Steam 1 RUN: 5fb5a8bf-5676-4fb8-b558-5cc8a0c27ea8